[Event "Titled Tuesday Blitz July 4 Early 2023"]
[White "Taspinar, Yanki"]
[Black "Makarian, Rudik"]
[WhiteFideId "34561188"]
[BlackFideId "44105681"]
[WhiteElo "2718"]
[BlackElo "2973"]
[Result "1-0"]
[Round "11"]
[TimeControl "180+2"]
[Date "2023.07.04"]
[WhiteClock "0:00:06"]
[BlackClock "0:00:07"]
[Board "19"]

1. Nf3 {[%clk 0:02:51]}  Nf6 {[%clk 0:03:00]} 2. g3 {[%clk 0:02:52]}  b5 {[%clk 0:03:00]} 3. Bg2 {[%clk 0:02:51]}  Bb7 {[%clk 0:03:01]} 4. O-O {[%clk 0:02:49]}  e6 {[%clk 0:03:02]} 5. b3 {[%clk 0:02:43]}  Be7 {[%clk 0:03:01]} 6. Bb2 {[%clk 0:02:43]}  O-O {[%clk 0:03:02]} 7. d4 {[%clk 0:02:41]}  b4 {[%clk 0:03:01]} 8. a3 {[%clk 0:02:40]}  a5 {[%clk 0:03:02]} 9. Nbd2 {[%clk 0:02:40]}  d5 {[%clk 0:02:59]} 10. Ne5 {[%clk 0:02:36]}  Nbd7 {[%clk 0:02:59]} 11. Nd3 {[%clk 0:02:29]}  c5 {[%clk 0:02:54]} 12. dxc5 {[%clk 0:02:28]}  Nxc5 {[%clk 0:02:52]} 13. axb4 {[%clk 0:01:54]}  Nxd3 {[%clk 0:02:45]} 14. cxd3 {[%clk 0:01:55]}  Bxb4 {[%clk 0:02:45]} 15. Nf3 {[%clk 0:01:53]}  Qe7 {[%clk 0:02:43]} 16. Rc1 {[%clk 0:01:40]}  Ba3 {[%clk 0:02:38]} 17. Qd2 {[%clk 0:01:37]}  Bb4 {[%clk 0:02:28]} 18. Qf4 {[%clk 0:01:33]}  Rfc8 {[%clk 0:02:25]} 19. Ne5 {[%clk 0:01:31]}  Ba3 {[%clk 0:02:19]} 20. Rxc8+ {[%clk 0:01:22]}  Rxc8 {[%clk 0:02:17]} 21. Bd4 {[%clk 0:01:22]}  h6 {[%clk 0:02:12]} 22. Ra1 {[%clk 0:01:12]}  Bb4 {[%clk 0:02:07]} 23. Rc1 {[%clk 0:01:12]}  Qd8 {[%clk 0:01:56]} 24. Bf3 {[%clk 0:01:04]}  Bd6 {[%clk 0:01:00]} 25. Qd2 {[%clk 0:01:03]}  Rxc1+ {[%clk 0:00:49]} 26. Qxc1 {[%clk 0:01:03]}  Nd7 {[%clk 0:00:48]} 27. Nxd7 {[%clk 0:00:52]}  Qxd7 {[%clk 0:00:48]} 28. Qc3 {[%clk 0:00:53]}  Bf8 {[%clk 0:00:43]} 29. Qxa5 {[%clk 0:00:52]}  Bc6 {[%clk 0:00:44]} 30. Kg2 {[%clk 0:00:49]}  f6 {[%clk 0:00:30]} 31. Bc5 {[%clk 0:00:48]}  Bxc5 {[%clk 0:00:24]} 32. Qxc5 {[%clk 0:00:49]}  Kf7 {[%clk 0:00:24]} 33. d4 {[%clk 0:00:49]}  Qb7 {[%clk 0:00:20]} 34. e3 {[%clk 0:00:48]}  Bb5 {[%clk 0:00:20]} 35. Bh5+ {[%clk 0:00:43]}  g6 {[%clk 0:00:20]} 36. Bd1 {[%clk 0:00:43]}  Bd3 {[%clk 0:00:18]} 37. b4 {[%clk 0:00:40]}  h5 {[%clk 0:00:18]} 38. h4 {[%clk 0:00:40]}  Qa6 {[%clk 0:00:17]} 39. Qc7+ {[%clk 0:00:36]}  Kf8 {[%clk 0:00:17]} 40. Qd8+ {[%clk 0:00:32]}  Kf7 {[%clk 0:00:17]} 41. Qd7+ {[%clk 0:00:27]}  Kf8 {[%clk 0:00:17]} 42. Bf3 {[%clk 0:00:25]}  Qa1 {[%clk 0:00:15]} 43. Qd8+ {[%clk 0:00:21]}  Kf7 {[%clk 0:00:16]} 44. Qd7+ {[%clk 0:00:21]}  Kf8 {[%clk 0:00:16]} 45. Kh2 {[%clk 0:00:16]}  Qf1 {[%clk 0:00:17]} 46. Qc8+ {[%clk 0:00:16]}  Kg7 {[%clk 0:00:16]} 47. Qc7+ {[%clk 0:00:16]}  Kf8 {[%clk 0:00:13]} 48. Qd6+ {[%clk 0:00:15]}  Kf7 {[%clk 0:00:12]} 49. Qc7+ {[%clk 0:00:15]}  Kf8 {[%clk 0:00:12]} 50. Qb8+ {[%clk 0:00:15]}  Kg7 {[%clk 0:00:12]} 51. Qa7+ {[%clk 0:00:15]}  Kh6 {[%clk 0:00:11]} 52. Qa2 {[%clk 0:00:15]}  g5 {[%clk 0:00:10]} 53. hxg5+ {[%clk 0:00:14]}  fxg5 {[%clk 0:00:11]} 54. Bg2 {[%clk 0:00:14]}  Qe1 {[%clk 0:00:12]} 55. Qb2 {[%clk 0:00:07]}  h4 {[%clk 0:00:09]} 56. gxh4 {[%clk 0:00:07]}  gxh4 {[%clk 0:00:10]} 57. b5 {[%clk 0:00:08]}  h3 {[%clk 0:00:09]} 58. Bxh3 {[%clk 0:00:07]}  Qa5 {[%clk 0:00:08]} 59. b6 {[%clk 0:00:07]}  Qa8 {[%clk 0:00:07]} 60. b7 {[%clk 0:00:06]}  Qb8+ {[%clk 0:00:08]} 61. Kg1 {[%clk 0:00:06]}  Be4 {[%clk 0:00:08]} 62. Bg2 {[%clk 0:00:06]}  Qg8 {[%clk 0:00:08]} 63. f3 {[%clk 0:00:06]}  Bxf3 {[%clk 0:00:07]} 64. b8=Q {[%clk 0:00:06]} 1-0


[Site "https://www.chess.com"]

[Event "Titled Tuesday Blitz July 4 Early 2023"]
[White "Amilal Munkhdalai"]
[Black "Durarbayli, Vasif"]
[WhiteFideId "4903250"]
[BlackFideId "13402935"]
[WhiteElo "2707"]
[BlackElo "2915"]
[Result "1/2-1/2"]
[Round "11"]
[TimeControl "180+2"]
[Date "2023.07.04"]
[WhiteClock "0:00:24"]
[BlackClock "0:00:32"]
[Board "20"]

1. e4 {[%clk 0:03:00]}  c5 {[%clk 0:02:57]} 2. Nf3 {[%clk 0:03:00]}  d6 {[%clk 0:02:54]} 3. d4 {[%clk 0:03:00]}  cxd4 {[%clk 0:02:55]} 4. Nxd4 {[%clk 0:03:01]}  Nf6 {[%clk 0:02:56]} 5. f3 {[%clk 0:03:01]}  Nc6 {[%clk 0:02:55]} 6. c4 {[%clk 0:03:01]}  e6 {[%clk 0:02:56]} 7. Nc3 {[%clk 0:03:01]}  Be7 {[%clk 0:02:55]} 8. Be3 {[%clk 0:03:02]}  O-O {[%clk 0:02:56]} 9. Rc1 {[%clk 0:03:02]}  d5 {[%clk 0:02:54]} 10. cxd5 {[%clk 0:02:58]}  exd5 {[%clk 0:02:55]} 11. exd5 {[%clk 0:02:54]}  Nxd5 {[%clk 0:02:54]} 12. Nxd5 {[%clk 0:02:54]}  Qxd5 {[%clk 0:02:54]} 13. Nxc6 {[%clk 0:02:54]}  bxc6 {[%clk 0:02:53]} 14. Qxd5 {[%clk 0:02:55]}  cxd5 {[%clk 0:02:54]} 15. Bd4 {[%clk 0:02:55]}  Bf5 {[%clk 0:02:23]} 16. Kf2 {[%clk 0:02:53]}  Rfc8 {[%clk 0:02:22]} 17. Ba6 {[%clk 0:02:49]}  Rxc1 {[%clk 0:01:56]} 18. Rxc1 {[%clk 0:02:48]}  Bf6 {[%clk 0:01:57]} 19. Bxf6 {[%clk 0:02:47]}  gxf6 {[%clk 0:01:57]} 20. Ke3 {[%clk 0:02:41]}  Rb8 {[%clk 0:01:56]} 21. b3 {[%clk 0:02:40]}  Rb6 {[%clk 0:01:51]} 22. Bd3 {[%clk 0:02:35]}  d4+ {[%clk 0:01:45]} 23. Kd2 {[%clk 0:02:33]}  Bg6 {[%clk 0:01:41]} 24. Rc4 {[%clk 0:02:27]}  Rd6 {[%clk 0:01:37]} 25. Ra4 {[%clk 0:02:21]}  Rd7 {[%clk 0:01:36]} 26. Bxg6 {[%clk 0:02:21]}  hxg6 {[%clk 0:01:35]} 27. Kd3 {[%clk 0:02:21]}  Kg7 {[%clk 0:01:27]} 28. Rxd4 {[%clk 0:02:21]}  Rc7 {[%clk 0:01:27]} 29. Rc4 {[%clk 0:02:17]}  Rd7+ {[%clk 0:01:26]} 30. Kc3 {[%clk 0:02:16]}  g5 {[%clk 0:01:26]} 31. a4 {[%clk 0:02:12]}  f5 {[%clk 0:01:25]} 32. b4 {[%clk 0:02:05]}  Rd1 {[%clk 0:01:21]} 33. Kb2 {[%clk 0:02:01]}  f4 {[%clk 0:01:12]} 34. Rc2 {[%clk 0:01:52]}  f5 {[%clk 0:01:06]} 35. h3 {[%clk 0:01:51]}  Kf6 {[%clk 0:01:06]} 36. Kb3 {[%clk 0:01:49]}  Ke5 {[%clk 0:01:05]} 37. Kc4 {[%clk 0:01:49]}  Rb1 {[%clk 0:00:45]} 38. Kc5 {[%clk 0:01:42]}  Kf6 {[%clk 0:00:43]} 39. Re2 {[%clk 0:01:26]}  g4 {[%clk 0:00:41]} 40. hxg4 {[%clk 0:01:24]}  fxg4 {[%clk 0:00:42]} 41. fxg4 {[%clk 0:01:24]}  Kg5 {[%clk 0:00:43]} 42. a5 {[%clk 0:01:17]}  Kxg4 {[%clk 0:00:39]} 43. Ra2 {[%clk 0:01:08]}  Kg3 {[%clk 0:00:37]} 44. b5 {[%clk 0:01:07]}  Rg1 {[%clk 0:00:35]} 45. b6 {[%clk 0:00:41]}  axb6+ {[%clk 0:00:35]} 46. axb6 {[%clk 0:00:31]}  Rxg2 {[%clk 0:00:33]} 47. Rxg2+ {[%clk 0:00:25]}  Kxg2 {[%clk 0:00:34]} 48. b7 {[%clk 0:00:26]}  f3 {[%clk 0:00:34]} 49. b8=Q {[%clk 0:00:26]}  f2 {[%clk 0:00:35]} 50. Qg8+ {[%clk 0:00:26]}  Kh2 {[%clk 0:00:34]} 51. Qh7+ {[%clk 0:00:26]}  Kg2 {[%clk 0:00:35]} 52. Qg6+ {[%clk 0:00:27]}  Kh2 {[%clk 0:00:36]} 53. Qh5+ {[%clk 0:00:27]}  Kg2 {[%clk 0:00:36]} 54. Qg4+ {[%clk 0:00:27]}  Kh2 {[%clk 0:00:36]} 55. Qe2 {[%clk 0:00:26]}  Kg2 {[%clk 0:00:37]} 56. Qe4+ {[%clk 0:00:25]}  Kg1 {[%clk 0:00:34]} 57. Qg4+ {[%clk 0:00:25]}  Kh2 {[%clk 0:00:33]} 58. Qf3 {[%clk 0:00:25]}  Kg1 {[%clk 0:00:33]} 59. Qg3+ {[%clk 0:00:26]}  Kh1 {[%clk 0:00:33]} 60. Qh3+ {[%clk 0:00:24]}  Kg1 {[%clk 0:00:33]} 61. Qg4+ {[%clk 0:00:24]}  Kh1 {[%clk 0:00:32]} 62. Qd1+ {[%clk 0:00:24]}  Kg2 {[%clk 0:00:32]} 63. Qe2 {[%clk 0:00:24]}  Kg1 {[%clk 0:00:32]} 64. Qg4+ {[%clk 0:00:24]} 1/2-1/2


[Site "https://www.chess.com"]

[Event "Titled Tuesday Blitz July 4 Early 2023"]
[White "Ibarra Jerez, Jose Carlos"]
[Black "Petrosian, Karlen"]
[WhiteFideId "2226332"]
[BlackFideId "4176146"]
[WhiteElo "2893"]
[BlackElo "2688"]
[Result "0-1"]
[Round "11"]
[TimeControl "180+2"]
[Date "2023.07.04"]
[WhiteClock "0:00:00"]
[BlackClock "0:00:22"]
[Board "22"]

1. e4 {[%clk 0:03:00]}  e6 {[%clk 0:02:58]} 2. d4 {[%clk 0:03:00]}  d5 {[%clk 0:02:59]} 3. Nc3 {[%clk 0:03:00]}  Nf6 {[%clk 0:02:59]} 4. Bg5 {[%clk 0:02:59]}  dxe4 {[%clk 0:02:59]} 5. Nxe4 {[%clk 0:02:59]}  Be7 {[%clk 0:02:59]} 6. Bxf6 {[%clk 0:03:00]}  gxf6 {[%clk 0:02:59]} 7. Nf3 {[%clk 0:03:00]}  f5 {[%clk 0:03:00]} 8. Nc3 {[%clk 0:03:00]}  a6 {[%clk 0:03:00]} 9. Qd2 {[%clk 0:03:00]}  b5 {[%clk 0:02:59]} 10. O-O-O {[%clk 0:03:01]}  Bb7 {[%clk 0:03:00]} 11. d5 {[%clk 0:03:01]}  b4 {[%clk 0:03:00]} 12. Bc4 {[%clk 0:02:54]}  bxc3 {[%clk 0:02:54]} 13. Qxc3 {[%clk 0:02:52]}  e5 {[%clk 0:02:28]} 14. Nxe5 {[%clk 0:02:45]}  O-O {[%clk 0:02:25]} 15. Qg3+ {[%clk 0:02:16]}  Kh8 {[%clk 0:02:23]} 16. d6 {[%clk 0:02:15]}  Bxd6 {[%clk 0:02:21]} 17. Nxf7+ {[%clk 0:02:08]}  Rxf7 {[%clk 0:02:20]} 18. Bxf7 {[%clk 0:02:09]}  Nd7 {[%clk 0:02:19]} 19. Qb3 {[%clk 0:02:00]}  Rb8 {[%clk 0:02:16]} 20. Rhe1 {[%clk 0:01:56]}  Be4 {[%clk 0:02:09]} 21. Qc3+ {[%clk 0:01:33]}  Qf6 {[%clk 0:02:08]} 22. Qxf6+ {[%clk 0:01:30]}  Nxf6 {[%clk 0:02:09]} 23. f3 {[%clk 0:01:30]}  Bc6 {[%clk 0:02:07]} 24. Be6 {[%clk 0:01:26]}  f4 {[%clk 0:02:06]} 25. Bc4 {[%clk 0:01:22]}  Kg7 {[%clk 0:02:00]} 26. Re6 {[%clk 0:01:19]}  Bb5 {[%clk 0:01:56]} 27. Bb3 {[%clk 0:01:01]}  Bd7 {[%clk 0:01:50]} 28. Re2 {[%clk 0:00:54]}  a5 {[%clk 0:01:46]} 29. Be6 {[%clk 0:00:45]}  Bxe6 {[%clk 0:01:37]} 30. Rxe6 {[%clk 0:00:44]}  Kf7 {[%clk 0:01:38]} 31. Re2 {[%clk 0:00:42]}  h5 {[%clk 0:01:31]} 32. Rd4 {[%clk 0:00:37]}  h4 {[%clk 0:01:25]} 33. c3 {[%clk 0:00:37]}  Rg8 {[%clk 0:01:19]} 34. h3 {[%clk 0:00:34]}  Rg5 {[%clk 0:01:14]} 35. Kc2 {[%clk 0:00:30]}  Rf5 {[%clk 0:01:15]} 36. c4 {[%clk 0:00:30]}  Bc5 {[%clk 0:01:14]} 37. Rd8 {[%clk 0:00:28]}  Be3 {[%clk 0:01:14]} 38. Rh8 {[%clk 0:00:26]}  Nh5 {[%clk 0:01:12]} 39. Rh7+ {[%clk 0:00:26]}  Ke6 {[%clk 0:01:05]} 40. Rxc7 {[%clk 0:00:26]}  Ng3 {[%clk 0:01:05]} 41. Re1 {[%clk 0:00:27]}  Rg5 {[%clk 0:00:58]} 42. Rd1 {[%clk 0:00:22]}  Nf5 {[%clk 0:00:58]} 43. Rc6+ {[%clk 0:00:20]}  Ke7 {[%clk 0:00:58]} 44. Kc3 {[%clk 0:00:08]}  Rxg2 {[%clk 0:00:53]} 45. Rd5 {[%clk 0:00:08]}  Ng3 {[%clk 0:00:43]} 46. Rb5 {[%clk 0:00:08]}  Ne2+ {[%clk 0:00:38]} 47. Kd3 {[%clk 0:00:08]}  Nc1+ {[%clk 0:00:38]} 48. Ke4 {[%clk 0:00:07]}  Kd7 {[%clk 0:00:31]} 49. Rh6 {[%clk 0:00:07]}  Kc7 {[%clk 0:00:31]} 50. Rf5 {[%clk 0:00:06]}  Rg7 {[%clk 0:00:30]} 51. Rxa5 {[%clk 0:00:02]}  Rd7 {[%clk 0:00:25]} 52. Rd5 {[%clk 0:00:01]}  Re7+ {[%clk 0:00:24]} 53. Kf5 {[%clk 0:00:02]}  Nxa2 {[%clk 0:00:22]} 54. Rxh4 {[%clk 0:00:02]}  Nb4 {[%clk 0:00:21]} 55. Re5 {[%clk 0:00:02]}  Rf7+ {[%clk 0:00:21]} 56. Ke4 {[%clk 0:00:02]}  Nc6 {[%clk 0:00:20]} 57. Rf5 {[%clk 0:00:02]}  Re7+ {[%clk 0:00:20]} 58. Kd3 {[%clk 0:00:03]}  Rd7+ {[%clk 0:00:20]} 59. Kc3 {[%clk 0:00:03]}  Bd2+ {[%clk 0:00:20]} 60. Kc2 {[%clk 0:00:02]}  Nd4+ {[%clk 0:00:20]} 61. Kd3 {[%clk 0:00:02]}  Nxf5+ {[%clk 0:00:21]} 62. Ke4 {[%clk 0:00:00]}  Nxh4 {[%clk 0:00:22]} 0-1


[Site "https://www.chess.com"]

[Event "Titled Tuesday Blitz July 4 Early 2023"]
[White "Fisher_TheGalactic"]
[Black "Ter-Sahakyan, Samvel"]
[BlackFideId "13302531"]
[WhiteElo "2638"]
[BlackElo "2872"]
[Result "1-0"]
[Round "11"]
[TimeControl "180+2"]
[Date "2023.07.04"]
[WhiteClock "0:00:39"]
[BlackClock "0:00:00"]
[Board "23"]

1. Nf3 {[%clk 0:03:00]}  d5 {[%clk 0:02:59]} 2. g3 {[%clk 0:03:00]}  g6 {[%clk 0:03:00]} 3. Bg2 {[%clk 0:03:00]}  Bg7 {[%clk 0:03:00]} 4. O-O {[%clk 0:03:01]}  e5 {[%clk 0:03:00]} 5. d3 {[%clk 0:03:01]}  Nc6 {[%clk 0:03:00]} 6. e4 {[%clk 0:03:01]}  dxe4 {[%clk 0:03:01]} 7. dxe4 {[%clk 0:03:02]}  Qxd1 {[%clk 0:03:01]} 8. Rxd1 {[%clk 0:03:03]}  Bg4 {[%clk 0:03:01]} 9. c3 {[%clk 0:03:02]}  Nf6 {[%clk 0:03:01]} 10. Nbd2 {[%clk 0:03:01]}  O-O {[%clk 0:03:00]} 11. h3 {[%clk 0:03:01]}  Be6 {[%clk 0:02:59]} 12. Ng5 {[%clk 0:03:00]}  Bc8 {[%clk 0:02:56]} 13. Ngf3 {[%clk 0:02:57]}  Rd8 {[%clk 0:02:50]} 14. Re1 {[%clk 0:02:45]}  a5 {[%clk 0:02:48]} 15. Nc4 {[%clk 0:02:45]}  Ne8 {[%clk 0:02:32]} 16. Bg5 {[%clk 0:02:42]}  f6 {[%clk 0:02:32]} 17. Bd2 {[%clk 0:02:39]}  Be6 {[%clk 0:02:26]} 18. Ne3 {[%clk 0:02:38]}  Nd6 {[%clk 0:02:27]} 19. Nd5 {[%clk 0:02:24]}  Rac8 {[%clk 0:02:26]} 20. Rad1 {[%clk 0:02:22]}  Nxe4 {[%clk 0:02:20]} 21. Nxc7 {[%clk 0:02:14]}  Rxc7 {[%clk 0:02:19]} 22. Rxe4 {[%clk 0:02:14]}  Bxa2 {[%clk 0:02:19]} 23. Ree1 {[%clk 0:02:02]}  Bb3 {[%clk 0:02:16]} 24. Ra1 {[%clk 0:02:02]}  Rcd7 {[%clk 0:02:08]} 25. Be3 {[%clk 0:02:02]}  a4 {[%clk 0:01:53]} 26. Bf1 {[%clk 0:02:01]}  Ra8 {[%clk 0:01:36]} 27. Nd2 {[%clk 0:01:57]}  Bf7 {[%clk 0:01:29]} 28. Nc4 {[%clk 0:01:51]}  Bxc4 {[%clk 0:01:17]} 29. Bxc4+ {[%clk 0:01:52]}  Kf8 {[%clk 0:01:15]} 30. Bb5 {[%clk 0:01:50]}  a3 {[%clk 0:01:14]} 31. bxa3 {[%clk 0:01:44]}  Ke8 {[%clk 0:01:11]} 32. a4 {[%clk 0:01:44]}  Bf8 {[%clk 0:00:53]} 33. Bb6 {[%clk 0:01:43]}  Be7 {[%clk 0:00:50]} 34. Red1 {[%clk 0:01:31]}  Bd8 {[%clk 0:00:19]} 35. Rxd7 {[%clk 0:01:28]}  Kxd7 {[%clk 0:00:19]} 36. Rd1+ {[%clk 0:01:28]}  Ke7 {[%clk 0:00:19]} 37. Bc5+ {[%clk 0:01:15]}  Ke8 {[%clk 0:00:19]} 38. Rd6 {[%clk 0:01:06]}  Rc8 {[%clk 0:00:18]} 39. a5 {[%clk 0:00:55]}  Bxa5 {[%clk 0:00:12]} 40. Rxf6 {[%clk 0:00:55]}  Bxc3 {[%clk 0:00:10]} 41. Rf8+ {[%clk 0:00:51]}  Kd7 {[%clk 0:00:11]} 42. Rf7+ {[%clk 0:00:52]}  Ke8 {[%clk 0:00:10]} 43. Rxb7 {[%clk 0:00:45]}  Bd4 {[%clk 0:00:09]} 44. Bd6 {[%clk 0:00:42]}  h5 {[%clk 0:00:04]} 45. Rg7 {[%clk 0:00:41]}  Kd8 {[%clk 0:00:00]} 46. Rg8+ {[%clk 0:00:39]} 1-0


[Site "https://www.chess.com"]

[Event "Titled Tuesday Blitz July 4 Early 2023"]
[White "Zavgorodniy, Sergiy"]
[Black "Shimanov, Aleksandr"]
[WhiteFideId "14110148"]
[BlackFideId "4198603"]
[WhiteElo "2587"]
[BlackElo "2900"]
[Result "0-1"]
[Round "11"]
[TimeControl "180+2"]
[Date "2023.07.04"]
[WhiteClock "0:00:03"]
[BlackClock "0:00:06"]
[Board "26"]

1. e4 {[%clk 0:03:00]}  g6 {[%clk 0:02:56]} 2. d4 {[%clk 0:02:59]}  d6 {[%clk 0:02:51]} 3. Nc3 {[%clk 0:02:59]}  Nf6 {[%clk 0:02:50]} 4. Nge2 {[%clk 0:02:59]}  Bg7 {[%clk 0:02:45]} 5. g3 {[%clk 0:02:58]}  O-O {[%clk 0:02:43]} 6. Bg2 {[%clk 0:02:58]}  c5 {[%clk 0:02:44]} 7. d5 {[%clk 0:02:42]}  Nbd7 {[%clk 0:02:28]} 8. O-O {[%clk 0:02:42]}  a6 {[%clk 0:02:28]} 9. a4 {[%clk 0:02:41]}  Rb8 {[%clk 0:02:28]} 10. a5 {[%clk 0:02:31]}  Ne8 {[%clk 0:02:25]} 11. Be3 {[%clk 0:02:21]}  Nc7 {[%clk 0:02:16]} 12. Qd2 {[%clk 0:02:19]}  b5 {[%clk 0:01:59]} 13. axb6 {[%clk 0:02:19]}  Nxb6 {[%clk 0:02:00]} 14. b3 {[%clk 0:02:18]}  Bd7 {[%clk 0:01:57]} 15. h4 {[%clk 0:02:15]}  Nb5 {[%clk 0:01:48]} 16. h5 {[%clk 0:02:10]}  Ra8 {[%clk 0:01:40]} 17. Bh6 {[%clk 0:01:38]}  Bxh6 {[%clk 0:00:48]} 18. Qxh6 {[%clk 0:01:37]}  Be8 {[%clk 0:00:33]} 19. Bf3 {[%clk 0:01:21]}  Nd4 {[%clk 0:00:32]} 20. Nxd4 {[%clk 0:01:15]}  cxd4 {[%clk 0:00:33]} 21. Ne2 {[%clk 0:01:15]}  Bb5 {[%clk 0:00:33]} 22. Kg2 {[%clk 0:01:10]}  Bxe2 {[%clk 0:00:27]} 23. Bxe2 {[%clk 0:01:10]}  Nd7 {[%clk 0:00:27]} 24. hxg6 {[%clk 0:01:07]}  fxg6 {[%clk 0:00:27]} 25. Bg4 {[%clk 0:01:07]}  Rf6 {[%clk 0:00:19]} 26. Be6+ {[%clk 0:01:00]}  Kh8 {[%clk 0:00:18]} 27. Rh1 {[%clk 0:00:42]}  Nf8 {[%clk 0:00:18]} 28. Rh4 {[%clk 0:00:37]}  g5 {[%clk 0:00:10]} 29. Qxg5 {[%clk 0:00:30]}  Nxe6 {[%clk 0:00:10]} 30. dxe6 {[%clk 0:00:28]}  Qg8 {[%clk 0:00:10]} 31. Qxg8+ {[%clk 0:00:18]}  Kxg8 {[%clk 0:00:11]} 32. Rd1 {[%clk 0:00:11]}  Raf8 {[%clk 0:00:10]} 33. Rd2 {[%clk 0:00:11]}  Rc8 {[%clk 0:00:08]} 34. Rh5 {[%clk 0:00:10]}  Rxe6 {[%clk 0:00:08]} 35. f3 {[%clk 0:00:09]}  Rc3 {[%clk 0:00:08]} 36. Rd5 {[%clk 0:00:09]}  Rf6 {[%clk 0:00:08]} 37. R5xd4 {[%clk 0:00:09]}  Rfxf3 {[%clk 0:00:08]} 38. R4d3 {[%clk 0:00:09]}  Rfxd3 {[%clk 0:00:08]} 39. cxd3 {[%clk 0:00:09]}  Rxb3 {[%clk 0:00:08]} 40. Kf3 {[%clk 0:00:10]}  a5 {[%clk 0:00:08]} 41. Ke3 {[%clk 0:00:10]}  a4 {[%clk 0:00:09]} 42. Rc2 {[%clk 0:00:03]}  Rb8 {[%clk 0:00:06]} 0-1


[Site "https://www.chess.com"]

[Event "Titled Tuesday Blitz July 4 Early 2023"]
[White "Cherniaiev, Tykhon"]
[Black "Grandelius, Nils"]
[WhiteFideId "14182360"]
[BlackFideId "1710400"]
[WhiteElo "2700"]
[BlackElo "2888"]
[Result "1-0"]
[Round "11"]
[TimeControl "180+2"]
[Date "2023.07.04"]
[WhiteClock "0:00:09"]
[BlackClock "0:00:08"]
[Board "27"]

1. Nf3 {[%clk 0:03:00]}  c6 {[%clk 0:02:57]} 2. d4 {[%clk 0:03:00]}  d5 {[%clk 0:02:57]} 3. c4 {[%clk 0:03:01]}  e6 {[%clk 0:02:57]} 4. e3 {[%clk 0:03:00]}  Bd6 {[%clk 0:02:57]} 5. Nbd2 {[%clk 0:02:59]}  f5 {[%clk 0:02:51]} 6. Bd3 {[%clk 0:02:55]}  Qf6 {[%clk 0:02:42]} 7. b3 {[%clk 0:02:39]}  Nh6 {[%clk 0:02:42]} 8. Bb2 {[%clk 0:02:34]}  O-O {[%clk 0:02:41]} 9. Qc2 {[%clk 0:02:15]}  Nd7 {[%clk 0:02:20]} 10. h3 {[%clk 0:02:15]}  Nf7 {[%clk 0:02:01]} 11. g4 {[%clk 0:02:10]}  g6 {[%clk 0:02:01]} 12. O-O-O {[%clk 0:02:05]}  a5 {[%clk 0:01:57]} 13. Rdg1 {[%clk 0:02:00]}  Kh8 {[%clk 0:01:57]} 14. h4 {[%clk 0:01:49]}  a4 {[%clk 0:01:48]} 15. h5 {[%clk 0:01:42]}  axb3 {[%clk 0:01:48]} 16. axb3 {[%clk 0:01:37]}  g5 {[%clk 0:01:48]} 17. gxf5 {[%clk 0:01:29]}  e5 {[%clk 0:01:48]} 18. dxe5 {[%clk 0:01:19]}  Ndxe5 {[%clk 0:01:49]} 19. Kb1 {[%clk 0:01:04]}  h6 {[%clk 0:01:39]} 20. Nh4 {[%clk 0:00:51]}  Ba3 {[%clk 0:00:52]} 21. Ba1 {[%clk 0:00:51]}  Bb4 {[%clk 0:00:50]} 22. Bb2 {[%clk 0:00:43]}  Ba3 {[%clk 0:00:50]} 23. Ba1 {[%clk 0:00:27]}  Bb4 {[%clk 0:00:50]} 24. Bb2 {[%clk 0:00:21]}  Bxd2 {[%clk 0:00:43]} 25. Qxd2 {[%clk 0:00:19]}  gxh4 {[%clk 0:00:29]} 26. Rg6 {[%clk 0:00:19]}  Qxf5 {[%clk 0:00:30]} 27. Bxf5 {[%clk 0:00:16]}  Bxf5+ {[%clk 0:00:31]} 28. Kc1 {[%clk 0:00:17]}  Kh7 {[%clk 0:00:32]} 29. Rhg1 {[%clk 0:00:13]}  Nxg6 {[%clk 0:00:30]} 30. hxg6+ {[%clk 0:00:13]}  Bxg6 {[%clk 0:00:31]} 31. Rxg6 {[%clk 0:00:12]}  Kxg6 {[%clk 0:00:31]} 32. Qd3+ {[%clk 0:00:12]}  Kh5 {[%clk 0:00:28]} 33. Qe2+ {[%clk 0:00:11]}  Kg6 {[%clk 0:00:28]} 34. Qd3+ {[%clk 0:00:11]}  Kg5 {[%clk 0:00:15]} 35. f4+ {[%clk 0:00:11]}  Kg4 {[%clk 0:00:15]} 36. Qg6+ {[%clk 0:00:09]}  Kf3 {[%clk 0:00:15]} 37. Qh5+ {[%clk 0:00:10]}  Kxe3 {[%clk 0:00:14]} 38. Qxh4 {[%clk 0:00:10]}  Nd6 {[%clk 0:00:12]} 39. Qg3+ {[%clk 0:00:09]}  Ke4 {[%clk 0:00:11]} 40. Qg2+ {[%clk 0:00:09]}  Kf5 {[%clk 0:00:11]} 41. Qh3+ {[%clk 0:00:07]}  Ke4 {[%clk 0:00:11]} 42. Qh1+ {[%clk 0:00:07]}  Ke3 {[%clk 0:00:07]} 43. Qh3+ {[%clk 0:00:08]}  Kf2 {[%clk 0:00:07]} 44. Bd4+ {[%clk 0:00:08]}  Ke2 {[%clk 0:00:07]} 45. Qe3+ {[%clk 0:00:08]}  Kf1 {[%clk 0:00:08]} 46. Qf2# {[%clk 0:00:09]} 1-0


[Site "https://www.chess.com"]